fUST/lending_fUST_20250708
["ID","MTS","AMOUNT","RATE_DAILY","PERIOD"]
[370290489,1751938247073,-423.15772731,0.00019452,2]
[370290491,1751938247084,-48.65227269,0.00019452,2]
[370290493,1751938247094,-1162.31790043,0.00019452,2]
[370290496,1751938247109,-328.96209957,0.00019452,2]
[370290498,1751938247118,-492.77,0.00019452,2]
[370290500,1751938247127,-1895.43,0.00019452,2]
[370290501,1751938247136,-1387.81,0.00019452,2]
[370290503,1751938247145,-2399.48,0.00019452,2]
[370290505,1751938247155,-481.14,0.00019452,2]
[370290507,1751938247164,-604.01,0.00019452,2]
[370290509,1751938247174,-3288.68,0.00019452,2]
[370290511,1751938247183,-460.0,0.00019452,2]
[370290514,1751938247193,-460.0,0.00019452,2]
[370290515,1751938247202,-460.0,0.00019452,2]
[370290517,1751938247211,-661.99,0.00019452,2]
[370290519,1751938247220,-460.0,0.00019452,2]
[370290521,1751938247229,-527.4,0.00019452,2]
[370290523,1751938247238,-460.0,0.00019452,2]
[370290525,1751938247247,-380.40736265,0.00019452,2]
[370290528,1751938247259,-480.44,0.00019452,2]
[370292338,1751938343892,440.04722058,0.00027397,120]
[370292339,1751938388640,350.81342702,0.000181,9]
[370292341,1751938516591,1707.0,0.00025183,60]
[370292344,1751938718794,210.40935184,0.000222,69]
[370292346,1751938777608,-246.816997,0.00018221,2]
[370292347,1751938777629,-95.183003,0.000189,2]
[370292349,1751939254640,-612.7417002,0.00018071,2]
[370292350,1751939255166,-5029.42,0.000188,2]
[370292351,1751939255189,-300.0,0.00018895,2]
[370292352,1751939255213,-500.0,0.00018896,2]
[370292353,1751939255236,-500.0,0.00018896,2]
[370292354,1751939255260,-612.67159365,0.00018896,2]
[370292355,1751939255283,-500.0,0.00018896,2]
[370292356,1751939255306,-500.0,0.00018896,2]
[370292357,1751939255328,-500.0,0.00018896,2]
[370292358,1751939255349,-257.0,0.00018896,2]
[370292359,1751939255372,-496.81958848,0.00018896,2]
[370292360,1751939303300,194.14214,0.00027397,120]
[370292423,1751939431880,-300.0,0.00018894,2]
[370292425,1751939431891,-1200.0,0.00018894,2]
[370292452,1751939432105,-345.85239929,0.00018894,2]
[370292455,1751939432115,-10433.49,0.00018895,2]
[370292458,1751939432125,-7040.71515383,0.00018895,2]
[370292461,1751939432135,-1572.7200946,0.00019078,2]
[370292464,1751939432145,-518.91,0.00019168,3]
[370292467,1751939432154,-259.46,0.00019168,3]
[370292470,1751939432163,-778.4,0.00019168,3]
[370292472,1751939432173,-1057.47107885,0.00019178,2]
[370292474,1751939432182,-9110.25437331,0.00019178,2]
[370292476,1751939432192,-464.29597836,0.00019178,2]
[370292478,1751939432201,-460.0,0.00019178,2]
[370292480,1751939432210,-460.0,0.00019178,2]
[370292482,1751939432220,-609.22464667,0.00019178,2]
[370292484,1751939432229,-289.92397808,0.00019178,2]
[370292486,1751939432238,-464.94471331,0.00019178,2]
[370292488,1751939432247,-463.42459826,0.00019178,2]
[370292490,1751939432258,-460.0,0.00019178,2]
[370292492,1751939432273,-500.0,0.00019178,2]
[370292494,1751939432283,-511.20876959,0.00019178,2]
[370292496,1751939432292,-463.76661607,0.00019178,2]
[370292498,1751939432302,-461.72049882,0.00019178,2]
[370292500,1751939432311,-460.0,0.00019178,2]
[370292502,1751939432321,-461.36020101,0.00019178,2]
[370292504,1751939432330,-460.0,0.00019178,2]
[370292506,1751939432339,-461.6621377,0.00019178,2]
[370292508,1751939432348,-231.58279875,0.00019178,2]
[370292510,1751939432357,-462.99473351,0.00019178,2]
[370292512,1751939432367,-436.87389861,0.00019178,2]
[370292513,1751939432376,-274.8039304,0.00019178,2]
[370292515,1751939432386,-462.16970143,0.00019178,2]
[370292517,1751939432395,-550.66069442,0.00019178,2]
[370292519,1751939432404,-466.09598068,0.00019178,2]
[370292521,1751939432414,-463.65389952,0.00019178,2]
[370292523,1751939432423,-308.46048666,0.00019178,2]
[370292525,1751939432432,-461.30024542,0.00019178,2]
[370292527,1751939432442,-464.94539549,0.00019178,2]
[370292529,1751939432451,-460.0,0.00019178,2]
[370292531,1751939432460,-462.54291998,0.00019178,2]
[370292533,1751939432470,-463.36489481,0.00019178,2]
[370292535,1751939432480,-461.31137485,0.00019178,2]
[370292537,1751939432489,-354.32915269,0.00019178,2]
[370292539,1751939432498,-393.46135819,0.00019178,2]
[370292541,1751939432507,-306.5095127,0.00019178,2]
[370292543,1751939432517,-460.0,0.00019178,2]
[370292545,1751939432526,-461.18729045,0.00019178,2]
[370292547,1751939432535,-462.60325616,0.00019178,2]
[370292549,1751939432545,-461.97842218,0.00019178,2]
[370292551,1751939432554,-466.68239537,0.00019178,2]
[370292553,1751939432564,-461.94491973,0.00019178,2]
[370292555,1751939432573,-461.81769987,0.00019178,2]
[370292557,1751939432583,-462.75318099,0.00019178,2]
[370292559,1751939432592,-171.83278017,0.00019178,2]
[370292561,1751939432601,-464.54536784,0.00019178,2]
[370292563,1751939432610,-460.0,0.00019178,2]
[370292565,1751939432619,-457.21202773,0.00019178,2]
[370292567,1751939432628,-463.7180095,0.00019178,2]
[370292569,1751939432637,-464.52381506,0.00019178,2]
[370292570,1751939432646,-465.54040895,0.00019178,2]
[370292572,1751939432655,-463.84230179,0.00019178,2]
[370292574,1751939432665,-701.26,0.00019178,2]
[370292576,1751939432674,-460.0,0.00019178,2]
[370292578,1751939432683,-531.48,0.00019178,2]
[370292580,1751939432693,-460.0,0.00019178,2]
[370292582,1751939432702,-460.0,0.00019178,2]
[370292584,1751939432711,-460.0,0.00019178,2]
[370292586,1751939432721,-152.57883379,0.00019178,2]
[370292588,1751939432731,-464.175164,0.00019178,2]
[370292590,1751939432740,-460.0,0.00019178,2]
[370292592,1751939432749,-460.0,0.00019178,2]
[370292594,1751939432758,-478.95111317,0.00019178,2]
[370292596,1751939432767,-460.0,0.00019178,2]
[370292598,1751939432777,-460.0,0.00019178,2]
[370292600,1751939432786,-460.0,0.00019178,2]
[370292602,1751939432795,-360.5016196,0.00019178,2]
[370292604,1751939432805,-535.76,0.00019178,2]
[370292606,1751939432814,-460.0,0.00019178,2]
[370292608,1751939432824,-466.18527684,0.00019178,2]
[370292610,1751939432833,-467.41638218,0.00019178,2]
[370292612,1751939432842,-471.80011516,0.00019178,2]
[370292614,1751939432852,-460.0,0.00019178,2]
[370292616,1751939432861,-464.64576762,0.00019178,2]
[370292618,1751939432870,-460.0,0.00019178,2]
[370292620,1751939432879,-460.0,0.00019178,2]
[370292623,1751939432889,-460.0,0.00019178,2]
[370292624,1751939432898,-460.0,0.00019178,2]
[370292626,1751939432907,-460.0,0.00019178,2]
[370292629,1751939432917,-334.03156458,0.00019178,2]
[370292630,1751939432926,-471.44039629,0.00019178,2]
[370292632,1751939432947,-460.0,0.00019178,2]
[370292634,1751939432958,-381.97509693,0.00019178,2]
[370292636,1751939432968,-500.0,0.00019178,2]
[370292638,1751939432978,-500.0,0.00019178,2]
[370292640,1751939432988,-500.0,0.00019178,2]
[370292642,1751939432998,-518.31747714,0.00019178,2]
[370292644,1751939433008,-468.1499895,0.00019178,2]
[370292646,1751939433018,-460.0,0.00019178,2]
[370292648,1751939433028,-460.94404015,0.00019178,2]
[370292650,1751939433038,-460.0,0.00019178,2]
[370292652,1751939433048,-466.13554363,0.00019178,2]
[370292654,1751939433058,-230.91956626,0.00019178,2]
[370292656,1751939433068,-460.0,0.00019178,2]
[370292658,1751939433078,-464.57351094,0.00019178,2]
[370292660,1751939433088,-464.9628017,0.00019178,2]
[370292662,1751939433099,-500.0,0.00019178,2]
[370292664,1751939433109,-522.83563274,0.00019178,2]
[370292666,1751939433119,-468.2320034,0.00019178,2]
[370292668,1751939433129,-277.50843256,0.00019178,2]
[370292669,1751939433139,-467.12365217,0.00019178,2]
[370292671,1751939433149,-483.53,0.00019178,2]
[370292673,1751939433159,-460.0,0.00019178,2]
[370292675,1751939433168,-464.6387076,0.00019178,2]
[370292677,1751939433178,-466.69864213,0.00019178,2]
[370292679,1751939433188,-479.72928112,0.00019178,2]
[370292681,1751939433197,-461.59286999,0.00019178,2]
[370292683,1751939433207,-462.45643432,0.00019178,2]
[370292686,1751939433218,-460.0,0.00019178,2]
[370292688,1751939433228,-460.0,0.00019178,2]
[370292689,1751939433239,-460.0,0.00019178,2]
[370292692,1751939433250,-463.20832841,0.00019178,2]
[370292694,1751939433260,-365.49276825,0.00019178,2]
[370292696,1751939433274,-478.32280344,0.00019178,2]
[370292698,1751939433283,-460.0,0.00019178,2]
[370292700,1751939433294,-460.0,0.00019178,2]
[370292702,1751939433306,-460.0,0.00019178,2]
[370292704,1751939433317,-472.51082075,0.00019178,2]
[370292706,1751939433327,-464.34452738,0.00019178,2]
[370292708,1751939433338,-467.03365953,0.00019178,2]
[370292710,1751939433349,-461.25049022,0.00019178,2]
[370292712,1751939433359,-463.19456266,0.00019178,2]
[370292714,1751939433368,-460.0,0.00019178,2]
[370292715,1751939433378,-460.0,0.00019178,2]
[370292716,1751939433388,-461.95392481,0.00019178,2]
[370292717,1751939433398,-258.49597052,0.00019178,2]
[370292718,1751939433407,-462.93830292,0.00019178,2]
[370292719,1751939433417,-460.0,0.00019178,2]
[370292721,1751939433428,-460.0,0.00019178,2]
[370292723,1751939433438,-472.43571668,0.00019178,2]
[370292725,1751939433448,-744.6,0.00019178,2]
[370292727,1751939433458,-468.3685355,0.00019178,2]
[370292729,1751939433468,-462.76333041,0.00019178,2]
[370292731,1751939433477,-467.11606497,0.00019178,2]
[370292733,1751939433488,-460.0,0.00019178,2]
[370292735,1751939433498,-471.06665782,0.00019178,2]
[370292737,1751939433508,-462.11852128,0.00019178,2]
[370292739,1751939433518,-460.0,0.00019178,2]
[370292740,1751939433528,-631.81,0.00019178,2]
[370292743,1751939433538,-460.0,0.00019178,2]
[370292744,1751939433549,-564.81,0.00019178,2]
[370292746,1751939433559,-460.0,0.00019178,2]
[370292748,1751939433568,-460.0,0.00019178,2]
[370292750,1751939433578,-461.73412768,0.00019178,2]
[370292752,1751939433588,-1271.29,0.00019178,2]
[370292754,1751939433597,-463.89297478,0.00019178,2]
[370292755,1751939433607,-2905.42,0.00019178,2]
[370292756,1751939433617,-2489.88,0.00019178,2]
[370292757,1751939433626,-463.60452292,0.00019178,2]
[370292758,1751939433637,-460.0,0.00019178,2]
[370292759,1751939433647,-1991.34,0.00019178,2]
[370292760,1751939433657,-650.72,0.00019178,2]
[370292761,1751939433667,-3629.52,0.00019178,2]
[370292762,1751939433677,-526.11,0.00019178,2]
[370292763,1751939433686,-659.52,0.00019178,2]
[370292764,1751939433696,-472.65941496,0.00019178,2]
[370292765,1751939433707,-1824.17,0.00019178,2]
[370292766,1751939433716,-460.0,0.00019178,2]
[370292767,1751939433726,-460.0,0.00019178,2]
[370292768,1751939433736,-559.28,0.00019178,2]
[370292769,1751939433746,-475.69057792,0.00019178,2]
[370292770,1751939433755,-406.01855328,0.00019178,2]
[370292771,1751939433765,-463.45161788,0.00019178,2]
[370292772,1751939433775,-460.0,0.00019178,2]
[370292773,1751939433785,-460.0,0.00019178,2]
[370292774,1751939433795,-466.36106867,0.00019178,2]
[370292775,1751939433805,-776.16,0.00019178,2]
[370292776,1751939433814,-1786.09,0.00019178,2]
[370292777,1751939433825,-674.59,0.00019178,2]
[370292778,1751939433834,-460.0,0.00019178,2]
[370292779,1751939433843,-717.56,0.00019178,2]
[370292780,1751939433852,-470.78067502,0.00019178,2]
[370292781,1751939433863,-460.0,0.00019178,2]
[370292782,1751939433873,-469.42171595,0.00019178,2]
[370292783,1751939433884,-460.0,0.00019178,2]
[370292784,1751939433893,-466.03453658,0.00019178,2]
[370292785,1751939433903,-2900.6,0.00019178,2]
[370292786,1751939433912,-464.90044006,0.00019178,2]
[370292787,1751939433922,-460.0,0.00019178,2]
[370292788,1751939433931,-467.81386867,0.00019178,2]
[370292789,1751939433941,-471.96090856,0.00019178,2]
[370292790,1751939433951,-513.3753506,0.00019178,2]
[370292791,1751939433962,-804.93,0.00019178,2]
[370292792,1751939433972,-464.64710437,0.00019178,2]
[370292793,1751939433981,-462.31859946,0.00019178,2]
[370292794,1751939433995,-460.0,0.00019178,2]
[370292795,1751939434005,-465.24679226,0.00019178,2]
[370292796,1751939434015,-460.0,0.00019178,2]
[370292797,1751939434025,-573.23,0.00019178,2]
[370292798,1751939434035,-1880.93,0.00019178,2]
[370292799,1751939434046,-461.91824969,0.00019178,2]
[370292800,1751939434055,-463.85882764,0.00019178,2]
[370292801,1751939434066,-460.0,0.00019178,2]
[370292802,1751939434076,-463.18426846,0.00019178,2]
[370292803,1751939434087,-799.89,0.00019178,2]
[370292804,1751939434097,-1276.08,0.00019178,2]
[370292805,1751939434108,-630.46,0.00019178,2]
[370292806,1751939434117,-476.78,0.00019178,2]
[370292807,1751939434128,-462.78129322,0.00019178,2]
[370292808,1751939434138,-460.0,0.00019178,2]
[370292809,1751939434148,-521.33,0.00019178,2]
[370292810,1751939434157,-467.64685559,0.00019178,2]
[370292811,1751939434167,-460.0,0.00019178,2]
[370292812,1751939434177,-499.70378882,0.00019178,2]
[370292813,1751939434187,-462.66467814,0.00019178,2]
[370292814,1751939434198,-1938.63,0.00019178,2]
[370292815,1751939434208,-623.43,0.00019178,2]
[370292816,1751939434218,-572.1,0.00019178,2]
[370292817,1751939434228,-483.93354073,0.00019178,2]
[370292818,1751939434238,-460.0,0.00019178,2]
[370292819,1751939434249,-464.20157633,0.00019178,2]
[370292820,1751939434259,-463.93212431,0.00019178,2]
[370292821,1751939434269,-460.0,0.00019178,2]
[370292822,1751939434281,-771.38,0.00019178,2]
[370292823,1751939434291,-2617.89,0.00019178,2]
[370292824,1751939434301,-460.0,0.00019178,2]
[370292825,1751939434310,-464.52685063,0.00019178,2]
[370292826,1751939434321,-667.21,0.00019178,2]
[370292827,1751939434331,-460.0,0.00019178,2]
[370292828,1751939434340,-463.07247342,0.00019178,2]
[370292829,1751939434351,-460.0,0.00019178,2]
[370292830,1751939434362,-460.0,0.00019178,2]
[370292831,1751939434372,-460.0,0.00019178,2]
[370292832,1751939434382,-742.47,0.00019178,2]
[370292833,1751939434393,-461.75931109,0.00019178,2]
[370292834,1751939434403,-460.0,0.00019178,2]
[370292835,1751939434413,-5569.52,0.00019178,2]
[370292836,1751939434423,-470.8977358,0.00019178,2]
[370292837,1751939434433,-461.17775924,0.00019178,2]
[370292838,1751939434443,-465.48801665,0.00019178,2]
[370292839,1751939434453,-4581.84,0.00019178,2]
[370292840,1751939434462,-460.0,0.00019178,2]
[370292841,1751939434472,-460.0,0.00019178,2]
[370292842,1751939434481,-358.87034863,0.00019178,2]
[370292843,1751939434490,-460.91386913,0.00019178,2]
[370292844,1751939434500,-465.47794631,0.00019178,2]
[370292845,1751939434510,-1380.03,0.00019178,2]
[370292846,1751939434519,-462.67009269,0.00019178,2]
[370292847,1751939434529,-460.0,0.00019178,2]
[370292848,1751939434538,-465.77683665,0.00019178,2]
[370292849,1751939434548,-460.0,0.00019178,2]
[370292850,1751939434558,-460.0,0.00019178,2]
[370292851,1751939434567,-460.0,0.00019178,2]
[370292852,1751939434576,-460.0,0.00019178,2]
[370292853,1751939434586,-463.16958358,0.00019178,2]
[370292854,1751939434595,-460.0,0.00019178,2]
[370292855,1751939434604,-1179.29,0.00019178,2]
[370292856,1751939434614,-4001.14,0.00019178,2]
[370292857,1751939434623,-460.0,0.00019178,2]
[370292858,1751939434633,-678.22,0.00019178,2]
[370292859,1751939434642,-476.21288245,0.00019178,2]
[370292860,1751939434651,-460.0,0.00019178,2]
[370292861,1751939434661,-470.87179941,0.00019178,2]
[370292862,1751939434670,-463.52741001,0.00019178,2]
[370292863,1751939434680,-461.70720378,0.00019178,2]
[370292864,1751939434689,-460.0,0.00019178,2]
[370292865,1751939434699,-460.0,0.00019178,2]
[370292866,1751939434708,-906.17,0.00019178,2]
[370292867,1751939434717,-466.10928181,0.00019178,2]
[370292868,1751939434727,-464.88738944,0.00019178,2]
[370292869,1751939434737,-460.0,0.00019178,2]
[370292870,1751939434746,-582.33,0.00019178,2]
[370292871,1751939434756,-466.10283851,0.00019178,2]
[370292872,1751939434765,-504.94529181,0.00019178,2]
[370292873,1751939434775,-189.704169,0.00019178,2]
[370292874,1751939434784,-356.9960021,0.000192,2]
[370292875,1751939434794,-180.6161346,0.000192,2]
[370292876,1751939434948,-665.9176582,0.000192,2]
[370292877,1751939434958,-168.0,0.0001921,2]
[370292878,1751939434968,-1488.158766,0.00019212,2]
[370292879,1751939434977,-207.4,0.00019312,2]
[370292880,1751939434986,-233.5209415,0.00019312,2]
[370292881,1751939434996,-25000.0,0.00019312,2]
[370292882,1751939435005,-23057.24299382,0.00019329,2]
[370292883,1751939435015,-500.0,0.00019342,2]
[370292884,1751939435024,-500.0,0.00019342,2]
[370292885,1751939435034,-500.0,0.00019369,2]
[370292886,1751939435044,-355.3141964,0.000194,2]
[370292887,1751939435054,-576.0368563,0.000194,2]
[370292888,1751939435063,-177.763542,0.000194,2]
[370292889,1751939435073,-576.0368563,0.000194,2]
[370292890,1751939435082,-441.27529847,0.00019424,2]
[370292891,1751939435091,-460.0,0.00019452,2]
[370292892,1751939435100,-460.0,0.00019452,2]
[370292893,1751939435110,-460.0,0.00019452,2]
[370292894,1751939435119,-467.64328776,0.00019452,2]
[370292895,1751939435129,-463.55759371,0.00019452,2]
[370292896,1751939435138,-434.25948946,0.00019452,2]
[370292897,1751939435147,-460.0,0.00019452,2]
[370292898,1751939435157,-154.179596,0.00019452,2]
[370292899,1751939435166,-152.143227,0.00019452,2]
[370292900,1751939435175,-267.86522082,0.00019452,2]
[370292901,1751939435186,-701.26,0.00019452,2]
[370292902,1751939435195,-460.0,0.00019452,2]
[370292903,1751939435204,-531.48,0.00019452,2]
[370292904,1751939435214,-152.472148,0.00019452,2]
[370292905,1751939435224,-460.0,0.00019452,2]
[370292906,1751939435233,-151.0,0.00019452,2]
[370292907,1751939435243,-460.0,0.00019452,2]
[370292908,1751939435252,-460.0,0.00019452,2]
[370292909,1751939435262,-460.0,0.00019452,2]
[370292910,1751939435271,-460.0,0.00019452,2]
[370292911,1751939435284,-466.58497325,0.00019452,2]
[370292912,1751939435293,-466.66843471,0.00019452,2]
[370292913,1751939435305,-460.0,0.00019452,2]
[370292914,1751939435315,-153.173357,0.00019452,2]
[370292915,1751939435326,-535.76,0.00019452,2]
[370292916,1751939435335,-460.0,0.00019452,2]
[370292917,1751939435345,-472.1840852,0.00019452,2]
[370292918,1751939435356,-475.12888825,0.00019452,2]
[370292919,1751939435366,-457.90387798,0.00019452,2]
[370292920,1751939435375,-464.76375317,0.00019452,2]
[370292921,1751939435386,-460.0,0.00019452,2]
[370292922,1751939435396,-460.0,0.00019452,2]
[370292923,1751939435405,-465.37046489,0.00019452,2]
[370292924,1751939435416,-460.0,0.00019452,2]
[370292925,1751939435425,-460.0,0.00019452,2]
[370292926,1751939435434,-256.59802388,0.00019452,2]
[370292927,1751939435445,-503.32371715,0.00019452,2]
[370292928,1751939435455,-483.53,0.00019452,2]
[370292929,1751939435465,-463.25463888,0.00019452,2]
[370292930,1751939435475,-460.0,0.00019452,2]
[370292931,1751939435484,-460.0,0.00019452,2]
[370292932,1751939435493,-460.0,0.00019452,2]
[370292933,1751939435502,-424.58816928,0.00019452,2]
[370292934,1751939435512,-460.0,0.00019452,2]
[370292935,1751939435522,-460.0,0.00019452,2]
[370292936,1751939435531,-151.0,0.00019452,2]
[370292937,1751939435540,-152.197093,0.00019452,2]
[370292938,1751939435550,-151.0,0.00019452,2]
[370292939,1751939435560,-460.0,0.00019452,2]
[370292940,1751939435570,-151.0,0.00019452,2]
[370292941,1751939435581,-152.81319,0.00019452,2]
[370292942,1751939435592,-460.0,0.00019452,2]
[370292943,1751939435602,-460.0,0.00019452,2]
[370292944,1751939435612,-460.0,0.00019452,2]
[370292945,1751939435623,-744.6,0.00019452,2]
[370292946,1751939435634,-460.0,0.00019452,2]
[370292947,1751939435644,-419.7548256,0.00019452,2]
[370292948,1751939435654,-631.81,0.00019452,2]
[370292949,1751939435664,-460.0,0.00019452,2]
[370292950,1751939435674,-564.81,0.00019452,2]
[370292951,1751939435683,-460.0,0.00019452,2]
[370292952,1751939435692,-467.79268267,0.00019452,2]
[370292953,1751939435701,-151.0,0.00019452,2]
[370292954,1751939435711,-154.253704,0.00019452,2]
[370292955,1751939435720,-1271.29,0.00019452,2]
[370292956,1751939435729,-158.41932,0.00019452,2]
[370292957,1751939435738,-2905.42,0.00019452,2]
[370292958,1751939435748,-2489.88,0.00019452,2]
[370292959,1751939435757,-460.0,0.00019452,2]
[370292960,1751939435767,-151.0,0.00019452,2]
[370292961,1751939435776,-152.48198,0.00019452,2]
[370292962,1751939435787,-1991.34,0.00019452,2]
[370292963,1751939435796,-650.72,0.00019452,2]
[370292964,1751939435806,-3629.52,0.00019452,2]
[370292965,1751939435816,-526.11,0.00019452,2]
[370292966,1751939435826,-659.52,0.00019452,2]
[370292967,1751939435835,-151.0,0.00019452,2]
[370292968,1751939435845,-151.0,0.00019452,2]
[370292969,1751939435855,-1824.17,0.00019452,2]
[370292970,1751939435866,-460.0,0.00019452,2]
[370292971,1751939435876,-310.5720443,0.00019452,2]
[370292972,1751939435885,-559.28,0.00019452,2]
[370292973,1751939435895,-162.951233,0.00019452,2]
[370292974,1751939435904,-460.0,0.00019452,2]
[370292975,1751939435915,-406.39490937,0.00019452,2]
[370292976,1751939435925,-776.16,0.00019452,2]
[370292977,1751939435935,-1786.09,0.00019452,2]
[370292978,1751939435945,-674.59,0.00019452,2]
[370292979,1751939435955,-460.0,0.00019452,2]
[370292980,1751939435965,-518.62288684,0.00019452,2]
[370292981,1751939436106,-198.93711316,0.00019452,2]
[370292982,1751939436117,-151.0,0.00019452,2]
[370292983,1751939436126,-49.45218212,0.00019452,2]
[370292984,1751939436138,-410.54781788,0.00019452,2]
[370292985,1751939436148,-151.0,0.00019452,2]
[370292986,1751939436158,-41.49132243,0.00019452,2]
[370292987,1751939436170,-426.18733939,0.00019452,2]
[370292988,1751939436180,-151.0,0.00019452,2]
[370292989,1751939436190,-152.93206,0.00019452,2]
[370292990,1751939436200,-701.29689173,0.00019452,2]
[370293034,1751939437918,-500.0,0.00018894,2]
[370293036,1751939437927,-335.56267875,0.00018894,2]
[370293038,1751939437937,-500.0,0.00018894,2]
[370293040,1751939437946,-500.0,0.00018894,2]
[370293042,1751939437955,-500.0,0.00018894,2]
[370293044,1751939437965,-583.67696002,0.00018894,2]
[370293046,1751939437974,-500.0,0.00018894,2]
[370293048,1751939437983,-500.0,0.00018894,2]
[370293050,1751939437992,-3402.31,0.00019178,2]
[370293052,1751939438002,-273.41713185,0.00019312,2]
[370293053,1751939438012,-2199.30310827,0.00019452,2]
[370293054,1751939438021,-151.0,0.00019452,2]
[370293055,1751939438030,-151.0,0.00019452,2]
[370293056,1751939438040,-460.0,0.00019452,2]
[370293057,1751939438049,-804.93,0.00019452,2]
[370293058,1751939438059,-154.643781,0.00019452,2]
[370293059,1751939438068,-460.0,0.00019452,2]
[370293060,1751939438077,-460.0,0.00019452,2]
[370293061,1751939438087,-573.23,0.00019452,2]
[370293062,1751939438096,-1880.93,0.00019452,2]
[370293063,1751939438105,-460.0,0.00019452,2]
[370293064,1751939438114,-799.89,0.00019452,2]
[370293065,1751939438123,-1276.08,0.00019452,2]
[370293066,1751939438133,-630.46,0.00019452,2]
[370293067,1751939438142,-476.78,0.00019452,2]
[370293068,1751939438151,-472.89951797,0.00019452,2]
[370293069,1751939438160,-521.33,0.00019452,2]
[370293070,1751939438171,-468.67482169,0.00019452,2]
[370293071,1751939438181,-1938.63,0.00019452,2]
[370293072,1751939438190,-623.43,0.00019452,2]
[370293073,1751939438330,-572.1,0.00019452,2]
[370293074,1751939438342,-460.0,0.00019452,2]
[370293075,1751939438352,-469.98754125,0.00019452,2]
[370293076,1751939438363,-771.38,0.00019452,2]
[370293077,1751939438373,-2617.89,0.00019452,2]
[370293078,1751939438383,-460.0,0.00019452,2]
[370293079,1751939438393,-667.21,0.00019452,2]
[370293080,1751939438403,-466.27312827,0.00019452,2]
[370293081,1751939438413,-468.42963636,0.00019452,2]
[370293082,1751939438423,-151.0,0.00019452,2]
[370293083,1751939438432,-157.30778,0.00019452,2]
[370293084,1751939438441,-466.02297185,0.00019452,2]
[370293085,1751939438451,-460.0,0.00019452,2]
[370293086,1751939438460,-742.47,0.00019452,2]
[370293087,1751939438470,-460.0,0.00019452,2]
[370293088,1751939438479,-5569.52,0.00019452,2]
[370293089,1751939438488,-4581.84,0.00019452,2]
[370293090,1751939438498,-460.0,0.00019452,2]
[370293091,1751939438507,-460.0,0.00019452,2]
[370293092,1751939438517,-1380.03,0.00019452,2]
[370293093,1751939438526,-460.0,0.00019452,2]
[370293094,1751939438536,-460.0,0.00019452,2]
[370293095,1751939438545,-460.0,0.00019452,2]
[370293096,1751939438556,-460.0,0.00019452,2]
[370293097,1751939438565,-460.0,0.00019452,2]
[370293098,1751939438575,-1179.29,0.00019452,2]
[370293099,1751939438585,-4001.14,0.00019452,2]
[370293100,1751939438595,-465.14160663,0.00019452,2]
[370293101,1751939438604,-460.0,0.00019452,2]
[370293102,1751939438614,-678.22,0.00019452,2]
[370293103,1751939438623,-460.0,0.00019452,2]
[370293104,1751939438632,-266.1182,0.00019452,2]
[370293105,1751939438641,-460.0,0.00019452,2]
[370293106,1751939438651,-906.17,0.00019452,2]
[370293107,1751939438661,-460.0,0.00019452,2]
[370293108,1751939438670,-470.13258421,0.00019452,2]
[370293109,1751939438679,-582.33,0.00019452,2]
[370293110,1751939438689,-3402.31,0.00019452,2]
[370293111,1751939438698,-161.6515613,0.00019452,2]
[370293112,1751939438708,-576.0368563,0.00019452,2]
[370293113,1751939438718,-177.7959578,0.00019452,2]